[Event "Open Cappelle-la-Grande"]
[Date "2026.02.25"]
[White "Pranav Anand"]
[Black "Lamaze, Simon"]
[WhiteElo "2606"]
[BlackElo "2450"]
[Round "6.6.3"]
[Result "1-0"]
[TimeControl "40/5400+30:1800+30"]

e4 {[%clk 1:30:55]} c5 {[%clk 1:30:53]} Nf3 {[%clk 1:31:20]} d6 {[%clk 1:28:50]}
d4 {[%clk 1:31:42]} cxd4 {[%clk 1:29:18]} Nxd4 {[%clk 1:32:07]} Nf6 {[%clk
1:29:44]} Nc3 {[%clk 1:32:31]} a6 {[%clk 1:30:12]} f4 {[%clk 1:32:48]} e5 {[%clk
1:30:36]} Nf3 {[%clk 1:33:12]} Qc7 {[%clk 1:31:00]} Bd3 {[%clk 1:33:35]} Be7
{[%clk 1:31:23]} Qe2 {[%clk 1:34:00]} Nbd7 {[%clk 1:26:10]} g4 {[%clk 1:34:17]}
Nxg4 {[%clk 1:18:23]} Rg1 {[%clk 1:26:45]} Nc5 {[%clk 1:07:13]} f5 {[%clk
1:16:51]} Nf6 {[%clk 1:05:25]} Rxg7 {[%clk 1:17:14]} Nxd3+ {[%clk 1:05:51]} Qxd3
{[%clk 1:05:19]} h6 {[%clk 1:05:56]} Be3 {[%clk 1:01:55]} Bf8 {[%clk 1:04:40]}
Rg2 {[%clk 1:01:20]} b5 {[%clk 1:02:39]} a4 {[%clk 0:53:48]} b4 {[%clk 1:01:27]}
Nd5 {[%clk 0:51:59]} Nxd5 {[%clk 1:01:50]} exd5 {[%clk 0:52:26]} Qd7 {[%clk
0:58:03]} Nd2 {[%clk 0:46:08]} Qxf5 {[%clk 0:55:05]} Ne4 {[%clk 0:45:46]} Be7
{[%clk 0:54:47]} O-O-O {[%clk 0:43:52]} Qd7 {[%clk 0:42:26]} Rdg1 {[%clk
0:41:29]} Qxa4 {[%clk 0:40:28]} Rg8+ {[%clk 0:40:38]} Rxg8 {[%clk 0:40:11]}
Rxg8+ {[%clk 0:41:07]} Kd7 {[%clk 0:40:24]} Bb6 {[%clk 0:41:16]} Bb7 {[%clk
0:38:19]} Qh3+ {[%clk 0:41:33]} f5 {[%clk 0:38:46]} Qxf5# {[%clk 0:42:00]}

[Variant "Standard"]
[Site "Europe Echecs"]

[Event "Open Cappelle-la-Grande"]
[Date "2026.02.25"]
[White "Pranesh M"]
[Black "Riff, Jean-Noel"]
[WhiteElo "2627"]
[BlackElo "2399"]
[Round "6.6.4"]
[Result "1-0"]
[TimeControl "40/5400+30:1800+30"]

e4 {[%clk 1:30:58]} e5 {[%clk 1:30:55]} Nf3 {[%clk 1:31:23]} Nc6 {[%clk
1:31:20]} Bc4 {[%clk 1:31:41]} Nf6 {[%clk 1:31:43]} d3 {[%clk 1:32:06]} d5
{[%clk 1:32:07]} exd5 {[%clk 1:32:25]} Nxd5 {[%clk 1:32:29]} O-O {[%clk
1:32:44]} Bc5 {[%clk 1:32:51]} Bb5 {[%clk 1:25:46]} Bg4 {[%clk 1:24:47]} h3
{[%clk 1:25:31]} Bxf3 {[%clk 1:25:06]} Qxf3 {[%clk 1:24:40]} O-O {[%clk
1:24:25]} c3 {[%clk 1:22:23]} Nce7 {[%clk 1:12:00]} Bc4 {[%clk 1:08:58]} c6
{[%clk 1:12:04]} Nd2 {[%clk 1:05:32]} f5 {[%clk 1:03:11]} Qe2 {[%clk 0:59:30]}
Ng6 {[%clk 1:02:24]} Nf3 {[%clk 0:57:51]} Qd6 {[%clk 0:55:10]} d4 {[%clk
0:53:35]} exd4 {[%clk 0:54:57]} cxd4 {[%clk 0:53:54]} Bb6 {[%clk 0:55:22]} Re1
{[%clk 0:53:34]} Kh8 {[%clk 0:48:57]} Bd2 {[%clk 0:47:08]} Ndf4 {[%clk 0:45:24]}
Qf1 {[%clk 0:46:42]} Rad8 {[%clk 0:44:46]} Rad1 {[%clk 0:46:14]} h6 {[%clk
0:44:20]} Ne5 {[%clk 0:44:24]} Bxd4 {[%clk 0:32:59]} Nf7+ {[%clk 0:38:49]} Rxf7
{[%clk 0:33:13]} Bxf7 {[%clk 0:38:58]} Nh4 {[%clk 0:32:14]} Bxf4 {[%clk
0:37:05]} Qxf4 {[%clk 0:31:59]} Bb3 {[%clk 0:30:44]} Kh7 {[%clk 0:28:37]} Kh1
{[%clk 0:29:51]} Rd6 {[%clk 0:26:03]} Qc4 {[%clk 0:26:17]} Rd5 {[%clk 0:24:43]}
Re2 {[%clk 0:26:10]} b5 {[%clk 0:22:09]} Qc1 {[%clk 0:24:19]}

[Variant "Standard"]
[Site "Europe Echecs"]

[Event "Open Cappelle-la-Grande"]
[Date "2026.02.25"]
[White "Cheng, Bobby"]
[Black "Favaloro, Andrea"]
[WhiteElo "2566"]
[BlackElo "2409"]
[Round "6.6.5"]
[Result "1/2-1/2"]
[TimeControl "40/5400+30:1800+30"]

d4 {[%clk 1:30:57]} d5 {[%clk 1:28:18]} c4 {[%clk 1:31:19]} e6 {[%clk 1:28:23]}
Nf3 {[%clk 1:31:41]} Nf6 {[%clk 1:28:35]} Nc3 {[%clk 1:32:04]} Nbd7 {[%clk
1:28:40]} g3 {[%clk 1:32:20]} dxc4 {[%clk 1:28:50]} Bg2 {[%clk 1:32:44]} Rb8
{[%clk 1:28:54]} O-O {[%clk 1:32:03]} Be7 {[%clk 1:29:04]} a4 {[%clk 1:27:37]}
a6 {[%clk 1:29:23]} Nd2 {[%clk 1:10:54]} b5 {[%clk 1:29:24]} axb5 {[%clk
1:11:20]} axb5 {[%clk 1:29:49]} Bc6 {[%clk 1:11:41]} b4 {[%clk 1:30:06]} Na4
{[%clk 1:12:00]} c3 {[%clk 1:30:18]} bxc3 {[%clk 1:11:11]} Bb7 {[%clk 1:28:36]}
Bxb7 {[%clk 1:04:27]} Rxb7 {[%clk 1:28:46]} Nc4 {[%clk 1:04:29]} Ra7 {[%clk
1:18:20]} cxb4 {[%clk 0:55:39]} Bxb4 {[%clk 1:17:20]} Rb1 {[%clk 0:55:42]} Be7
{[%clk 1:15:28]} Nc3 {[%clk 0:53:51]} Qa8 {[%clk 1:00:03]} Bf4 {[%clk 0:30:30]}
Nd5 {[%clk 0:44:16]} Nxd5 {[%clk 0:30:17]} Qxd5 {[%clk 0:35:52]} Ne5 {[%clk
0:27:25]} Nxe5 {[%clk 0:29:40]} Rb8+ {[%clk 0:26:14]} Bd8 {[%clk 0:30:01]} dxe5
{[%clk 0:20:24]} O-O {[%clk 0:26:24]} Qxd5 {[%clk 0:13:59]} exd5 {[%clk
0:26:48]} Be3 {[%clk 0:14:27]} Ra5 {[%clk 0:24:12]} Rfb1 {[%clk 0:10:59]} Be7
{[%clk 0:22:21]} Rxf8+ {[%clk 0:08:37]} Bxf8 {[%clk 0:22:42]} Rb8 {[%clk
0:09:02]} c5 {[%clk 0:21:50]} Rc8 {[%clk 0:06:00]} h6 {[%clk 0:20:50]} h4 {[%clk
0:03:34]} d4 {[%clk 0:18:55]} Bf4 {[%clk 0:04:01]} Ra6 {[%clk 0:18:58]} Kg2
{[%clk 0:02:08]} f6 {[%clk 0:17:22]} exf6 {[%clk 0:01:48]} Rxf6 {[%clk 0:17:41]}
Rc7 {[%clk 0:01:52]} Bd6 {[%clk 0:16:20]} Bxd6 {[%clk 0:00:40]} Rxd6 {[%clk
0:16:44]} Rxc5 {[%clk 0:00:36]} d3 {[%clk 0:17:08]} exd3 {[%clk 0:00:53]} Rxd3
{[%clk 0:17:32]} Rc6 {[%clk 0:00:42]} Ra3 {[%clk 0:17:43]} Kh3 {[%clk 0:00:52]}
Rf3 {[%clk 0:17:34]} Kg2 {[%clk 0:01:20]} Ra3 {[%clk 0:17:58]} g4 {[%clk
0:30:20]} Rb3 {[%clk 0:47:45]} f3 {[%clk 0:27:56]} Rb1 {[%clk 0:46:42]} Kg3
{[%clk 0:27:27]} Kh7 {[%clk 0:45:54]} Re6 {[%clk 0:27:39]} Ra1 {[%clk 0:45:54]}
g5 {[%clk 0:27:21]} hxg5 {[%clk 0:46:15]} hxg5 {[%clk 0:27:49]} Ra4 {[%clk
0:45:26]} Re4 {[%clk 0:27:33]} Ra5 {[%clk 0:45:39]} Kg4 {[%clk 0:27:45]} g6
{[%clk 0:45:45]} Re3 {[%clk 0:27:39]} Kg7 {[%clk 0:46:04]} f4 {[%clk 0:28:07]}
Rb5 {[%clk 0:45:56]} Kf3 {[%clk 0:28:36]} Rb4 {[%clk 0:46:00]} Rd3 {[%clk
0:29:04]} Ra4 {[%clk 0:44:56]} Ke3 {[%clk 0:29:33]} Kf7 {[%clk 0:43:36]} Rd7+
{[%clk 0:29:41]} Kg8 {[%clk 0:43:58]} Rd4 {[%clk 0:30:09]} Ra5 {[%clk 0:43:45]}
Ke4 {[%clk 0:30:33]} Kf7 {[%clk 0:43:29]} Rd7+ {[%clk 0:30:59]} Kg8 {[%clk
0:43:46]} Rd5 {[%clk 0:31:25]} Ra4+ {[%clk 0:43:41]} Ke5 {[%clk 0:31:53]} Kf7
{[%clk 0:43:48]} Rd7+ {[%clk 0:31:43]} Kg8 {[%clk 0:42:34]} Rd4 {[%clk 0:31:39]}
Ra5+ {[%clk 0:42:46]} Rd5 {[%clk 0:31:04]} Ra4 {[%clk 0:43:04]} Rd8+ {[%clk
0:29:38]} Kg7 {[%clk 0:43:15]} Rd7+ {[%clk 0:30:05]} Kg8 {[%clk 0:43:36]} Re7
{[%clk 0:30:30]} Kf8 {[%clk 0:43:21]} Re6 {[%clk 0:30:48]} Kf7 {[%clk 0:43:32]}
Rd6 {[%clk 0:31:09]} Ra5+ {[%clk 0:43:34]} Rd5 {[%clk 0:31:34]} Ra4 {[%clk
0:43:55]} Rd7+ {[%clk 0:31:52]} Kg8 {[%clk 0:44:16]} Rd4 {[%clk 0:32:17]} Ra5+
{[%clk 0:44:33]} Kf6 {[%clk 0:32:00]} Ra6+ {[%clk 0:44:57]} Ke5 {[%clk 0:31:40]}
Ra5+ {[%clk 0:45:18]} Ke6 {[%clk 0:31:58]} Rf5 {[%clk 0:45:29]}

[Variant "Standard"]
[Site "Europe Echecs"]

[Event "Open Cappelle-la-Grande"]
[Date "2026.02.25"]
[White "Raja Rithvik R"]
[Black "Bettalli, Francesco"]
[WhiteElo "2535"]
[BlackElo "2384"]
[Round "6.6.6"]
[Result "1/2-1/2"]
[TimeControl "40/5400+30:1800+30"]

d4 {[%clk 1:30:54]} d5 {[%clk 1:27:36]} c4 {[%clk 1:31:18]} dxc4 {[%clk
1:28:00]} Nf3 {[%clk 1:31:34]} Nf6 {[%clk 1:28:22]} e3 {[%clk 1:31:56]} Bg4
{[%clk 1:28:45]} Bxc4 {[%clk 1:32:04]} e6 {[%clk 1:29:06]} h3 {[%clk 1:31:10]}
Bh5 {[%clk 1:29:29]} Nc3 {[%clk 1:31:17]} c5 {[%clk 1:29:39]} d5 {[%clk
1:27:03]} exd5 {[%clk 1:29:08]} Nxd5 {[%clk 1:27:23]} Nxd5 {[%clk 1:25:09]} Qxd5
{[%clk 1:18:00]} Qxd5 {[%clk 1:25:14]} Bxd5 {[%clk 1:18:25]} Nc6 {[%clk
1:25:01]} Bd2 {[%clk 1:13:06]} f6 {[%clk 1:16:41]} Bc3 {[%clk 1:11:51]} Bf7
{[%clk 1:16:17]} e4 {[%clk 1:03:20]} Bxd5 {[%clk 1:11:12]} exd5 {[%clk 1:03:43]}
Ne7 {[%clk 1:11:24]} d6 {[%clk 0:55:52]} Nf5 {[%clk 1:06:59]} d7+ {[%clk
0:55:09]} Kxd7 {[%clk 1:07:14]} O-O-O+ {[%clk 0:55:34]} Nd6 {[%clk 1:05:52]} g4
{[%clk 0:54:55]} Be7 {[%clk 1:01:48]} h4 {[%clk 0:51:32]} Kc6 {[%clk 0:56:22]}
Rhe1 {[%clk 0:43:39]} Rae8 {[%clk 0:55:59]} Re6 {[%clk 0:40:56]} Kd7 {[%clk
0:54:21]} Re3 {[%clk 0:39:11]} Bd8 {[%clk 0:54:25]} Red3 {[%clk 0:38:51]} Bc7
{[%clk 0:54:01]} g5 {[%clk 0:37:11]} Rhf8 {[%clk 0:54:14]} gxf6 {[%clk 0:26:11]}
gxf6 {[%clk 0:54:39]} b4 {[%clk 0:26:20]} b6 {[%clk 0:50:08]} bxc5 {[%clk
0:26:37]} bxc5 {[%clk 0:50:31]} Ba5 {[%clk 0:27:03]} Re6 {[%clk 0:49:14]} Ra3
{[%clk 0:27:08]} Rc8 {[%clk 0:46:13]} Rd5 {[%clk 0:13:21]} Bb6 {[%clk 0:40:43]}
Rh5 {[%clk 0:11:47]} Re7 {[%clk 0:40:49]} Rh6 {[%clk 0:11:01]} Rf7 {[%clk
0:39:40]} Bxb6 {[%clk 0:09:45]} axb6 {[%clk 0:40:08]} Rd3 {[%clk 0:10:08]} Rc6
{[%clk 0:38:45]} Rd5 {[%clk 0:10:33]} Kc8 {[%clk 0:37:22]} a4 {[%clk 0:06:54]}
Kb7 {[%clk 0:36:33]} Nd2 {[%clk 0:06:24]} Ne8 {[%clk 0:30:06]} Rdh5 {[%clk
0:01:36]} Rcc7 {[%clk 0:30:26]} Nc4 {[%clk 0:01:42]} Rcd7 {[%clk 0:27:13]} a5
{[%clk 0:18:24]} bxa5 {[%clk 0:48:33]} Nxa5+ {[%clk 0:18:24]} Kb6 {[%clk
0:47:41]} Nc4+ {[%clk 0:18:48]} Kb5 {[%clk 0:47:40]} Na3+ {[%clk 0:19:13]} Kb4
{[%clk 0:39:52]} Nc2+ {[%clk 0:19:15]} Kc4 {[%clk 0:40:10]} Ne3+ {[%clk
0:14:05]} Kd4 {[%clk 0:39:11]} Nc2+ {[%clk 0:14:02]} Kd3 {[%clk 0:38:03]} Rxc5
{[%clk 0:13:37]} Ke2 {[%clk 0:38:26]} Rhh5 {[%clk 0:09:38]} Rd1+ {[%clk
0:30:42]} Kb2 {[%clk 0:10:06]} Nd6 {[%clk 0:29:20]} Ne3 {[%clk 0:05:16]} Rb7+
{[%clk 0:29:03]} Kc2 {[%clk 0:05:45]} Rd2+ {[%clk 0:26:13]} Kc1 {[%clk 0:06:13]}
Ne4 {[%clk 0:23:22]} Rc2 {[%clk 0:06:42]} Rxc2+ {[%clk 0:23:15]} Kxc2 {[%clk
0:06:16]} Rc7+ {[%clk 0:22:59]} Kb3 {[%clk 0:06:14]} Kxf2 {[%clk 0:22:26]} Nd5
{[%clk 0:06:28]} Ng3 {[%clk 0:18:33]} Rh6 {[%clk 0:05:58]} Rb7+ {[%clk 0:19:00]}
Kc4 {[%clk 0:05:38]} f5 {[%clk 0:19:26]} Nf6 {[%clk 0:05:02]} f4 {[%clk
0:09:51]} Rxh7 {[%clk 0:05:11]} Rxh7 {[%clk 0:10:04]} Nxh7 {[%clk 0:05:37]} Nh5
{[%clk 0:10:17]} Ng5 {[%clk 0:05:31]} Kg3 {[%clk 0:10:42]} Ne6 {[%clk 0:05:53]}
f3 {[%clk 0:11:05]} Ng5 {[%clk 0:06:20]} f2 {[%clk 0:11:24]} Ne4+ {[%clk
0:06:48]} Kxh4 {[%clk 0:11:50]} Nxf2 {[%clk 0:07:16]}

[Variant "Standard"]
[Site "Europe Echecs"]

[Event "Open Cappelle-la-Grande"]
[Date "2026.02.25"]
[White "Eugene, Floryan"]
[Black "Moksh Amit Doshi"]
[WhiteElo "2478"]
[BlackElo "2354"]
[Round "6.6.7"]
[Result "1/2-1/2"]
[TimeControl "40/5400+30:1800+30"]

e4 {[%clk 1:30:57]} e5 {[%clk 1:29:19]} Nf3 {[%clk 1:31:20]} Nc6 {[%clk
1:29:43]} Bb5 {[%clk 1:31:44]} a6 {[%clk 1:30:08]} Ba4 {[%clk 1:32:10]} Nf6
{[%clk 1:30:31]} O-O {[%clk 1:32:33]} Be7 {[%clk 1:30:48]} d3 {[%clk 1:32:57]}
b5 {[%clk 1:31:12]} Bb3 {[%clk 1:33:23]} d6 {[%clk 1:31:36]} a4 {[%clk 1:33:23]}
Rb8 {[%clk 1:27:48]} axb5 {[%clk 1:32:11]} axb5 {[%clk 1:28:11]} Nc3 {[%clk
1:19:53]} Bg4 {[%clk 1:16:41]} Be3 {[%clk 1:19:17]} O-O {[%clk 1:16:33]} h3
{[%clk 1:14:45]} Be6 {[%clk 1:15:11]} Nd5 {[%clk 0:55:30]} Bxd5 {[%clk 1:13:37]}
exd5 {[%clk 0:55:50]} Nb4 {[%clk 1:14:01]} c4 {[%clk 0:41:30]} Nxd3 {[%clk
1:10:45]} cxb5 {[%clk 0:39:37]} Qd7 {[%clk 1:07:31]} b6 {[%clk 0:31:43]} cxb6
{[%clk 1:02:53]} Qxd3 {[%clk 0:31:19]} e4 {[%clk 1:03:16]} Qe2 {[%clk 0:31:30]}
exf3 {[%clk 1:03:40]} Qxf3 {[%clk 0:31:57]} Rfc8 {[%clk 1:02:26]} Bd4 {[%clk
0:27:59]} Ne8 {[%clk 1:01:19]} Rfc1 {[%clk 0:24:41]} Bf6 {[%clk 0:59:16]} Bxf6
{[%clk 0:25:05]} Nxf6 {[%clk 0:59:40]} Rc6 {[%clk 0:25:29]} Qe7 {[%clk 0:53:13]}
Qf4 {[%clk 0:20:36]} Rd8 {[%clk 0:51:47]} Rd1 {[%clk 0:18:04]} h6 {[%clk
0:49:59]} Qb4 {[%clk 0:17:13]} Qe4 {[%clk 0:40:48]} Qxe4 {[%clk 0:16:20]} Nxe4
{[%clk 0:41:11]} Rd4 {[%clk 0:15:35]} Nc5 {[%clk 0:37:24]} Bc2 {[%clk 0:15:37]}
b5 {[%clk 0:37:47]} b4 {[%clk 0:15:57]} Na4 {[%clk 0:38:11]} Bxa4 {[%clk
0:04:24]} bxa4 {[%clk 0:38:32]} Ra6 {[%clk 0:04:53]} Rdc8 {[%clk 0:32:04]} Rxa4
{[%clk 0:05:05]} Rc1+ {[%clk 0:32:29]} Kh2 {[%clk 0:05:33]} Rb1 {[%clk 0:32:34]}
h4 {[%clk 0:05:40]} h5 {[%clk 0:30:17]} g3 {[%clk 0:01:35]} g6 {[%clk 0:30:27]}
Kg2 {[%clk 0:01:42]} Rb3 {[%clk 0:30:41]} Rf4 {[%clk 0:01:43]} Rb7 {[%clk
0:29:42]} Rf6 {[%clk 0:02:06]} R3xb4 {[%clk 0:29:56]} Ra8+ {[%clk 0:02:28]} Kg7
{[%clk 0:26:56]} Rxd6 {[%clk 0:00:44]} Rd4 {[%clk 0:27:17]} Rdd8 {[%clk
0:30:15]} Rb2 {[%clk 0:56:05]} Ra3 {[%clk 0:28:57]} Rbd2 {[%clk 0:56:12]} d6
{[%clk 0:29:18]} Rxd6 {[%clk 0:56:36]}

[Variant "Standard"]
[Site "Europe Echecs"]

[Event "Open Cappelle-la-Grande"]
[Date "2026.02.25"]
[White "Ruzhansky, Elias"]
[Black "Lacanrus, David"]
[WhiteElo "2462"]
[BlackElo "2324"]
[Round "6.6.8"]
[Result "1-0"]
[TimeControl "40/5400+30:1800+30"]

e4 {[%clk 1:30:55]} c5 {[%clk 1:30:51]} Nf3 {[%clk 1:31:16]} Nc6 {[%clk
1:31:14]} d4 {[%clk 1:31:27]} cxd4 {[%clk 1:31:38]} Nxd4 {[%clk 1:31:47]} Nf6
{[%clk 1:32:02]} Nc3 {[%clk 1:32:07]} e5 {[%clk 1:32:29]} Ndb5 {[%clk 1:32:25]}
d6 {[%clk 1:32:54]} Bg5 {[%clk 1:32:43]} a6 {[%clk 1:33:18]} Na3 {[%clk
1:33:03]} b5 {[%clk 1:33:44]} Nd5 {[%clk 1:33:22]} Be7 {[%clk 1:34:10]} Bxf6
{[%clk 1:33:38]} Bxf6 {[%clk 1:34:36]} c4 {[%clk 1:33:54]} b4 {[%clk 1:35:00]}
Nc2 {[%clk 1:34:14]} O-O {[%clk 1:35:26]} Qf3 {[%clk 1:34:06]} Bg5 {[%clk
1:35:47]} h4 {[%clk 1:33:52]} Bh6 {[%clk 1:36:13]} g4 {[%clk 1:33:47]} f6 {[%clk
1:36:39]} Be2 {[%clk 1:33:20]} Be6 {[%clk 1:36:37]} Rd1 {[%clk 1:32:48]} Ra7
{[%clk 1:32:48]} Qg3 {[%clk 1:19:22]} a5 {[%clk 1:26:43]} Rg1 {[%clk 1:18:54]}
g6 {[%clk 1:15:07]} Rh1 {[%clk 1:16:23]} Qb8 {[%clk 0:48:42]} b3 {[%clk
0:54:29]} Bg7 {[%clk 0:39:58]} h5 {[%clk 0:51:50]} a4 {[%clk 0:37:53]} hxg6
{[%clk 0:43:41]} hxg6 {[%clk 0:38:18]} Qd3 {[%clk 0:43:58]} axb3 {[%clk
0:34:52]} axb3 {[%clk 0:44:20]} Ra2 {[%clk 0:34:25]} Nde3 {[%clk 0:43:48]} Rd8
{[%clk 0:31:59]} Kf1 {[%clk 0:36:06]} Na5 {[%clk 0:26:14]} Nd5 {[%clk 0:35:56]}
Rb2 {[%clk 0:23:53]} Ncxb4 {[%clk 0:34:54]} Rxb3 {[%clk 0:21:17]} Qd2 {[%clk
0:35:13]} Qb7 {[%clk 0:16:41]} Ra1 {[%clk 0:27:28]} Bxd5 {[%clk 0:12:16]} Qxd5+
{[%clk 0:23:47]} Qxd5 {[%clk 0:12:29]} Nxd5 {[%clk 0:24:12]} Nc6 {[%clk
0:10:11]} c5 {[%clk 0:24:05]} Rbb8 {[%clk 0:08:34]} Ra6 {[%clk 0:19:13]} Rb1+
{[%clk 0:04:01]} Kg2 {[%clk 0:19:34]} Rxh1 {[%clk 0:04:26]} Kxh1 {[%clk
0:19:56]} Nb8 {[%clk 0:03:49]} c6 {[%clk 0:19:28]} Nxa6 {[%clk 0:02:32]} Bxa6
{[%clk 0:19:48]} Kf7 {[%clk 0:03:00]} c7 {[%clk 0:19:36]} Rh8+ {[%clk 0:03:27]}
Kg2 {[%clk 0:19:52]} f5 {[%clk 0:03:53]} gxf5 {[%clk 0:15:31]} gxf5 {[%clk
0:04:16]} exf5 {[%clk 0:15:54]}

[Variant "Standard"]
[Site "Europe Echecs"]

[Event "Open Cappelle-la-Grande"]
[Date "2026.02.25"]
[White "Zamengo, Fulvio"]
[Black "Duboue, Peio"]
[WhiteElo "2375"]
[BlackElo "2461"]
[Round "6.6.9"]
[Result "1-0"]
[TimeControl "40/5400+30:1800+30"]

e4 {[%clk 1:29:30]} e5 {[%clk 1:30:46]} Nf3 {[%clk 1:29:24]} Nf6 {[%clk
1:31:09]} Nxe5 {[%clk 1:27:00]} d6 {[%clk 1:31:34]} Nf3 {[%clk 1:26:35]} Nxe4
{[%clk 1:31:59]} d3 {[%clk 1:26:30]} Nf6 {[%clk 1:32:25]} d4 {[%clk 1:26:55]} d5
{[%clk 1:32:37]} Bd3 {[%clk 1:26:46]} Bd6 {[%clk 1:33:02]} Qe2+ {[%clk 1:26:12]}
Be6 {[%clk 1:32:59]} Ng5 {[%clk 1:24:17]} Qe7 {[%clk 1:33:24]} Nxe6 {[%clk
1:24:12]} fxe6 {[%clk 1:33:48]} Nd2 {[%clk 1:24:07]} O-O {[%clk 1:32:51]} O-O
{[%clk 1:24:00]} c5 {[%clk 1:22:41]} c3 {[%clk 1:19:41]} Nc6 {[%clk 1:14:27]}
Nf3 {[%clk 1:20:04]} Rae8 {[%clk 1:06:07]} g3 {[%clk 1:10:59]} cxd4 {[%clk
0:47:05]} cxd4 {[%clk 1:10:21]} e5 {[%clk 0:47:06]} dxe5 {[%clk 1:10:28]} Nxe5
{[%clk 0:47:31]} Nxe5 {[%clk 1:09:50]} Qxe5 {[%clk 0:47:49]} Qxe5 {[%clk
1:09:36]} Bxe5 {[%clk 0:48:16]} Kg2 {[%clk 0:54:33]} Bd4 {[%clk 0:31:19]} Bf4
{[%clk 0:28:15]} b6 {[%clk 0:24:09]} Rab1 {[%clk 0:27:29]} Ne4 {[%clk 0:21:47]}
f3 {[%clk 0:14:40]} Nc5 {[%clk 0:21:46]} Bb5 {[%clk 0:14:54]} Rc8 {[%clk
0:21:15]} Rfe1 {[%clk 0:13:13]} a6 {[%clk 0:20:29]} Bf1 {[%clk 0:13:37]} Rfe8
{[%clk 0:17:12]} Rxe8+ {[%clk 0:12:17]} Rxe8 {[%clk 0:17:39]} b4 {[%clk
0:12:07]} Ne6 {[%clk 0:17:57]} Bd2 {[%clk 0:09:54]} Rc8 {[%clk 0:16:54]} Bd3
{[%clk 0:09:19]} g6 {[%clk 0:16:16]} f4 {[%clk 0:08:00]} b5 {[%clk 0:12:36]} f5
{[%clk 0:07:27]} Nf8 {[%clk 0:12:57]} Rb3 {[%clk 0:05:26]} Rc6 {[%clk 0:11:39]}
a4 {[%clk 0:04:55]} bxa4 {[%clk 0:10:17]} Ra3 {[%clk 0:05:20]} gxf5 {[%clk
0:09:53]} Rxa4 {[%clk 0:05:18]} Bc3 {[%clk 0:08:58]} Bxc3 {[%clk 0:05:35]} Rxc3
{[%clk 0:09:25]} Bxf5 {[%clk 0:05:57]} Rb3 {[%clk 0:08:53]} h4 {[%clk 0:03:22]}
Kg7 {[%clk 0:06:21]} h5 {[%clk 0:03:10]} Kf6 {[%clk 0:00:40]} g4 {[%clk
0:03:13]} Ke5 {[%clk 0:28:57]} Rxa6 {[%clk 0:21:18]} Rxb4 {[%clk 0:29:22]} Ra7
{[%clk 0:21:40]} Ne6 {[%clk 0:25:34]} Re7 {[%clk 0:20:20]} Rb6 {[%clk 0:26:01]}
Bxe6 {[%clk 0:20:29]} Rxe6 {[%clk 0:26:23]} Rxh7 {[%clk 0:20:55]} Kf4 {[%clk
0:08:02]} Kh3 {[%clk 0:20:37]} Rd6 {[%clk 0:07:59]} Kh4 {[%clk 0:16:01]} d4
{[%clk 0:08:26]} h6 {[%clk 0:13:03]} d3 {[%clk 0:08:17]} Rf7+ {[%clk 0:13:25]}
Ke4 {[%clk 0:06:36]} h7 {[%clk 0:13:38]} d2 {[%clk 0:06:01]} h8=Q {[%clk
0:13:23]} d1=Q {[%clk 0:06:29]} Qe8+ {[%clk 0:12:34]} Kd4 {[%clk 0:05:06]} Rf4+
{[%clk 0:12:45]} Kc3 {[%clk 0:03:14]} Qe5+ {[%clk 0:13:01]} Kb3 {[%clk 0:02:36]}
Qb5+ {[%clk 0:13:23]} Kc3 {[%clk 0:02:06]} Qc5+ {[%clk 0:13:47]}

[Variant "Standard"]
[Site "Europe Echecs"]

[Event "Open Cappelle-la-Grande"]
[Date "2026.02.25"]
[White "Degraeve, Remy"]
[Black "Jacobsen, Mikkel Manosri"]
[WhiteElo "2448"]
[BlackElo "2291"]
[Round "6.6.10"]
[Result "0-1"]
[TimeControl "40/5400+30:1800+30"]

e4 {[%clk 1:30:56]} c6 {[%clk 1:30:56]} d4 {[%clk 1:31:24]} d5 {[%clk 1:31:22]}
e5 {[%clk 1:31:52]} Bf5 {[%clk 1:31:46]} h4 {[%clk 1:32:18]} h5 {[%clk 1:32:11]}
c4 {[%clk 1:32:45]} e6 {[%clk 1:32:23]} Nc3 {[%clk 1:33:11]} dxc4 {[%clk
1:32:43]} Bxc4 {[%clk 1:33:37]} Nd7 {[%clk 1:33:05]} Nge2 {[%clk 1:34:00]} Be7
{[%clk 1:33:27]} g3 {[%clk 1:34:27]} b5 {[%clk 1:33:38]} Bb3 {[%clk 1:34:46]} b4
{[%clk 1:33:49]} Nb1 {[%clk 1:35:14]} Nh6 {[%clk 1:32:08]} Nd2 {[%clk 1:35:35]}
c5 {[%clk 1:30:17]} Nc4 {[%clk 1:31:40]} Be4 {[%clk 1:27:08]} O-O {[%clk
1:30:41]} Nf5 {[%clk 1:22:51]} Ne3 {[%clk 1:23:49]} Nxd4 {[%clk 1:03:54]} Nxd4
{[%clk 1:23:54]} Nxe5 {[%clk 1:04:16]} Ne2 {[%clk 1:03:18]} Nf3+ {[%clk
1:03:31]} Kg2 {[%clk 1:03:42]} Nxh4+ {[%clk 1:01:23]} Kh3 {[%clk 1:02:54]} Nf3
{[%clk 0:59:52]} Bc2 {[%clk 0:42:00]} Bb7 {[%clk 0:51:17]} Qxd8+ {[%clk
0:40:58]} Rxd8 {[%clk 0:50:23]} Ng1 {[%clk 0:36:32]} g5 {[%clk 0:18:33]} Nxf3
{[%clk 0:36:39]} Bxf3 {[%clk 0:17:03]} Bd1 {[%clk 0:37:00]} g4+ {[%clk 0:16:49]}
Kh2 {[%clk 0:37:27]} Rxd1 {[%clk 0:15:35]} Rxd1 {[%clk 0:24:28]} h4 {[%clk
0:16:00]} Rd3 {[%clk 0:24:03]} f5 {[%clk 0:02:23]} Nc4 {[%clk 0:23:03]} hxg3+
{[%clk 0:01:18]} Kxg3 {[%clk 0:23:29]} Be2 {[%clk 0:01:02]} Nd6+ {[%clk
0:22:28]} Kf8 {[%clk 0:01:31]} Rd2 {[%clk 0:22:47]} Rh3+ {[%clk 0:01:35]} Kf4
{[%clk 0:23:13]} Bf6 {[%clk 0:01:38]} Nxf5 {[%clk 0:22:04]} Rf3+ {[%clk
0:02:05]} Ke4 {[%clk 0:22:30]} exf5+ {[%clk 0:01:58]} Kd5 {[%clk 0:22:54]} Rxf2
{[%clk 0:01:48]} Kxc5 {[%clk 0:21:55]} g3 {[%clk 0:02:04]} Rc2 {[%clk 0:21:28]}
Bd3 {[%clk 0:01:23]} Bh6+ {[%clk 0:21:42]} Bg7 {[%clk 0:01:37]} Rd2 {[%clk
0:21:46]} Bxh6 {[%clk 0:01:27]} Rxd3 {[%clk 0:22:12]} g2 {[%clk 0:00:58]} Rg1
{[%clk 0:21:19]} Bf4 {[%clk 0:26:51]} Rh3 {[%clk 0:49:09]} Kf7 {[%clk 0:20:00]}
Kxb4 {[%clk 0:47:26]} Rxb2+ {[%clk 0:19:38]} Kc4 {[%clk 0:44:14]} Kf6 {[%clk
0:16:14]} Kd3 {[%clk 0:40:49]} Rxa2 {[%clk 0:16:02]} Rh8 {[%clk 0:40:11]} Bg3
{[%clk 0:13:21]} Rg8 {[%clk 0:38:17]} a5 {[%clk 0:09:46]} Kc4 {[%clk 0:25:55]}
f4 {[%clk 0:08:52]} Kd3 {[%clk 0:25:32]} Kf5 {[%clk 0:09:02]} Rc1 {[%clk
0:22:57]} Ra3+ {[%clk 0:09:14]} Kd2 {[%clk 0:23:24]} Ke4 {[%clk 0:09:25]} Rgc8
{[%clk 0:21:10]} Bf2 {[%clk 0:08:36]}

[Variant "Standard"]
[Site "Europe Echecs"]